bitfinex-derivatives/quotes_ETHF0:USTF0_20250816
["timestamp","ask_amount","ask_price","bid_price","bid_amount"]
[1755326553240,1.4495,4423.6,4423.4,1.45596588]
[1755326553539,1.4495,4423.6,4423.5,21.063]
[1755326554237,0.2422,4423.6,4423.5,21.3929]
[1755326554443,1.4495,4423.6,4423.5,21.3929]
[1755326554641,1.4495,4423.6,4423.5,21.2283]
[1755326554842,1.4495,4423.6,4423.5,0.3299]
[1755326555142,1.4495,4423.6,4423.5,21.3919]
[1755326555440,0.849,4425.0,4423.6,0.1646]
[1755326555640,1.4495,4424.3,4424.2,3.5377]
[1755326555841,1.56954044,4424.3,4424.2,24.5997]
[1755326556747,0.77314044,4424.3,4424.2,26.05566588]
[1755326556938,1.03804044,4424.3,4424.2,26.05566588]
[1755326558042,1.20584044,4424.3,4424.2,26.05566588]
[1755326558245,1.4495,4424.3,4424.2,26.05566588]
[1755326559445,1.56953009,4424.3,4424.2,3.2078]
[1755326559638,1.56953009,4424.3,4424.2,24.2668]
[1755326559835,1.56953009,4424.3,4424.2,3.2078]
[1755326560140,0.849,4423.6,4423.5,3.2078]
[1755326560441,1.4495,4423.6,4423.5,24.2668]
[1755326560641,4.4495,4423.6,4423.5,2.1462]
[1755326560844,4.56958271,4423.6,4423.5,2.1462]
[1755326561041,0.849,4423.5,4422.8,2.02445556]
[1755326561238,0.849,4422.8,4422.5,3.2078]
[1755326561444,1.4495,4422.6,4422.5,3.2078]
[1755326561840,0.3356,4422.4,4422.3,1.45596588]
[1755326562039,0.2422,4422.8,4422.3,2.69756588]
[1755326562235,0.92897145,4422.7,4422.6,0.43]
[1755326562440,0.72976867,4422.7,4422.6,25.7681]
[1755326562739,0.48666867,4422.7,4422.6,25.7681]
[1755326562940,0.3356,4422.7,4422.6,25.7681]
[1755326563141,0.97197795,4422.7,4422.6,25.7681]
[1755326563334,0.8209,4422.7,4422.6,27.22406588]
[1755326563538,0.8209,4422.7,4422.6,26.96336588]
[1755326563739,1.4495,4422.7,4422.6,26.54396588]
[1755326563937,1.4495,4422.7,4422.6,27.05876588]
[1755326564350,1.0858,4422.7,4422.6,27.05876588]
[1755326564548,0.3356,4422.7,4422.6,27.05876588]
[1755326564947,0.2431,4423.0,4422.9,0.5898]
[1755326565151,0.15096442,4423.0,4422.9,24.01726588]
[1755326565345,0.31876442,4423.0,4422.9,24.01726588]
[1755326566047,1.60046442,4423.0,4422.9,24.01726588]
[1755326567045,1.60046442,4423.0,4422.9,23.75656588]
[1755326567245,1.1846,4423.0,4422.9,22.3006]
[1755326567450,0.5787,4423.0,4422.9,24.01726588]
[1755326567854,0.9642,4423.3,4423.2,0.4245]
[1755326568052,1.11507659,4423.3,4423.2,23.33716588]
[1755326568347,1.62167659,4423.3,4423.2,23.33716588]
[1755326568552,1.4708,4423.3,4423.2,24.00926588]
[1755326568955,4.0403,4423.6,4423.5,0.6021]
[1755326569146,4.0403,4423.6,4423.5,24.00696588]
[1755326569351,0.1624,4423.6,4423.5,24.00696588]
[1755326569656,0.5066,4424.6,4423.8,1.492]
[1755326569849,1.4802,4424.3,4424.2,2.94796588]
[1755326570053,1.63102169,4424.3,4424.2,24.00596588]
[1755326570657,0.827,4424.7,4424.6,0.6021]
[1755326570853,1.63101429,4424.7,4424.6,1.492]
[1755326571154,0.47671429,4424.7,4424.6,4.6998]
[1755326571350,0.6066,4425.2,4424.6,3.8099]
[1755326571553,0.5675,4425.0,4424.9,2.94796588]
[1755326571749,0.5675,4425.0,4424.9,24.00496588]
[1755326572050,0.3259,4425.0,4424.9,24.00496588]
[1755326572446,0.5675,4425.0,4424.9,24.00496588]
[1755326572651,0.5675,4425.0,4424.9,22.549]
[1755326572846,0.2416,4425.1,4425.0,0.6739]
[1755326573046,0.99958292,4425.1,4425.0,1.492]
[1755326573455,0.99954714,4425.1,4425.0,1.492]
[1755326574151,0.3595,4425.2,4425.1,1.0751]
[1755326574355,0.85240464,4425.2,4425.1,4.4509]
[1755326574556,0.85240464,4425.2,4425.1,4.6998]
[1755326574757,1.74720464,4425.2,4425.1,24.8639]
[1755326576358,1.5802,4425.2,4425.1,24.8639]
[1755326576861,1.5802,4425.2,4425.1,25.7538]
[1755326577753,0.1,4425.2,4425.1,25.7538]
[1755326578555,1.5802,4425.2,4425.1,4.4509]
[1755326578755,1.5802,4425.2,4425.1,25.5009]
[1755326579762,1.5802,4425.2,4425.1,24.6919]
[1755326580163,1.5802,4425.2,4425.1,21.048]
[1755326580560,0.4219,4424.6,4424.3,3.2078]
[1755326580865,1.4802,4424.5,4424.4,22.54]
[1755326581963,1.4802,4424.5,4424.4,22.0359]
[1755326582159,1.4802,4424.5,4424.3,3.2078]
[1755326582464,1.4802,4424.5,4424.4,21.047]
[1755326582968,0.5854,4424.5,4423.8,0.8899]
[1755326583169,1.4802,4424.4,4424.3,1.492]
[1755326583363,0.3259,4424.4,4424.3,21.6481]
[1755326583561,1.4802,4424.4,4424.3,22.538]
[1755326585669,1.092,4424.4,4424.3,22.538]
[1755326585961,0.5066,4424.7,4424.4,0.8899]
[1755326586169,0.1624,4424.7,4424.6,1.492]
[1755326586367,1.092,4424.7,4424.6,22.537]
[1755326586569,1.4802,4424.7,4424.6,22.537]
[1755326586762,1.4802,4424.7,4424.3,4.40593709]
[1755326586973,1.4802,4424.2,4424.1,4.6998]
[1755326587170,1.4802,4424.2,4424.1,25.7438]
[1755326587968,1.4802,4424.2,4424.1,3.2078]
[1755326588164,1.4802,4424.2,4424.1,3.6419]
[1755326588366,0.3882,4424.7,4424.1,24.8529]
[1755326588567,0.5675,4424.6,4424.5,1.492]
[1755326588768,0.3259,4424.6,4424.5,1.492]
[1755326589267,0.1624,4424.6,4424.5,1.492]
[1755326589462,0.2416,4424.8,4424.5,0.6021]
[1755326589659,0.2416,4424.8,4424.7,0.6021]
[1755326589865,0.2416,4424.8,4424.7,1.492]
[1755326590066,3.5337,4424.9,4424.8,0.8419]
[1755326590261,3.7753,4424.9,4424.8,1.492]
[1755326590867,4.688,4424.9,4424.8,1.492]
[1755326591266,0.5854,4424.2,4424.1,4.0588]
[1755326591569,1.4802,4424.2,4424.1,4.2829]
[1755326591770,1.4802,4424.2,4424.1,3.6419]
[1755326592270,1.4802,4424.2,4424.1,4.0277]
[1755326592467,1.4802,4424.2,4424.1,3.2078]
[1755326592772,1.4802,4424.2,4424.1,3.6419]
[1755326592975,1.4802,4424.2,4424.1,4.6998]
[1755326593874,1.4802,4424.2,4424.1,3.8099]
[1755326594076,1.4802,4424.2,4424.1,4.1957]
[1755326594275,1.64726822,4424.2,4424.1,4.4509]
[1755326594870,1.64726822,4424.2,4424.1,3.2078]
[1755326595570,1.64726822,4424.2,4424.1,3.6419]
[1755326595766,1.64726822,4424.2,4424.1,3.2078]
[1755326596268,1.64726822,4424.2,4424.1,4.4446]
[1755326596473,1.64726822,4424.2,4424.1,4.6998]
[1755326596878,1.64726822,4424.2,4424.1,4.4509]
[1755326597186,1.64726822,4424.2,4424.1,4.1957]
[1755326597971,0.99406822,4424.2,4424.1,3.6419]
[1755326598172,0.99406822,4424.2,4424.1,4.6998]
[1755326598373,0.99406822,4424.2,4424.1,1.492]
[1755326598979,1.60616822,4424.2,4424.1,1.492]
[1755326600082,1.60616822,4424.2,4424.1,0.9879]
[1755326600284,1.60616822,4424.2,4424.1,0.4341]
[1755326600781,1.60616822,4424.2,4424.1,0.8245]
[1755326601175,1.60616822,4424.2,4424.1,1.5054]
[1755326601370,1.24726822,4424.2,4424.1,1.5054]
[1755326601575,1.60496822,4424.2,4424.0,21.039]
[1755326601881,0.5158,4423.8,4423.6,3.897]
[1755326602180,1.63726822,4423.7,4423.6,4.0064]
[1755326602477,1.63726822,4423.7,4423.6,25.7243]
[1755326602880,1.63726822,4423.7,4423.6,24.2448]
[1755326603477,1.63793453,4423.7,4423.6,24.653]
[1755326603780,1.63793453,4423.7,4423.6,25.0434]
[1755326604078,1.63793453,4423.7,4423.6,3.2078]
[1755326604277,1.63793453,4423.7,4423.6,24.2448]
[1755326606181,1.63793453,4423.7,4423.6,3.2078]
[1755326609287,1.6379725,4423.7,4423.6,3.2078]
[1755326611683,0.5049725,4423.7,4423.6,4.6873]
[1755326611985,1.0207725,4423.7,4423.6,4.6873]
[1755326612193,1.02079373,4423.7,4423.6,4.6873]
[1755326614889,1.63799373,4423.7,4423.6,4.4248]
[1755326616286,1.63799373,4423.7,4423.6,4.6873]
[1755326616485,1.27909373,4423.7,4423.6,4.6873]
[1755326616684,0.16779373,4423.7,4423.6,4.6873]
[1755326617889,0.2626,4424.4,4423.6,3.777]
[1755326618194,0.33279857,4424.3,4424.2,0.5692]
[1755326618487,0.33279857,4424.3,4424.2,22.5085]
[1755326618685,0.16779857,4424.3,4424.2,25.7163]
[1755326622593,3.2078,4425.0,4424.2,24.806]
[1755326622787,0.22048794,4424.9,4424.8,0.5692]
[1755326622988,0.22048794,4424.9,4424.8,22.5039]
[1755326623189,0.48308794,4424.9,4424.8,22.5039]
[1755326623385,0.82028794,4424.9,4424.8,22.5039]
[1755326623589,0.5998,4424.9,4424.8,22.5039]
[1755326623986,0.2626,4425.1,4424.9,0.9097]
[1755326624183,0.2626,4425.1,4425.0,1.4789]
[1755326624184,0.5904,4425.1,4425.0,1.4789]
[1755326624389,1.42796783,4425.1,4425.0,1.4789]
[1755326624790,1.69056783,4425.1,4425.0,1.4789]
[1755326625590,1.33166783,4425.1,4425.0,1.4789]
[1755326625784,1.69056783,4425.1,4425.0,1.4789]
[1755326628091,0.853,4425.1,4425.0,1.4789]
[1755326628395,1.4702,4425.1,4425.0,1.4789]
[1755326629696,1.4702,4425.1,4425.0,1.217]
[1755326630693,1.4702,4425.1,4424.7,3.2078]
[1755326630899,1.4539,4424.8,4424.7,3.2078]
[1755326631099,1.4539,4424.8,4424.7,24.2228]
[1755326631396,1.4539,4424.8,4424.7,25.0193]
[1755326631592,1.4539,4424.8,4424.7,25.2842]
[1755326632098,1.0947,4424.8,4424.7,25.6844]
[1755326632396,0.6885,4425.2,4425.1,1.4616]
[1755326632796,0.9463,4425.2,4425.1,1.4616]
[1755326633201,0.1,4425.2,4425.1,1.4616]
[1755326633601,0.6885,4425.2,4425.1,1.4616]
[1755326633802,0.1,4425.2,4425.1,2.91774281]
[1755326639107,0.6885,4425.2,4425.1,2.91774281]
[1755326639401,0.9369,4425.2,4425.1,1.2227]
[1755326639705,1.5539,4425.2,4425.1,22.4696]
[1755326640606,1.5539,4425.2,4425.1,22.2307]
[1755326641395,0.5875,4425.0,4424.9,0.7965]
[1755326641599,1.4539,4425.0,4424.9,22.4656]
[1755326641796,1.4539,4425.0,4424.9,1.4616]
[1755326642001,1.4539,4425.0,4424.9,22.4646]
[1755326642508,1.0947,4425.0,4424.9,22.4646]
[1755326643301,0.6885,4425.2,4425.1,0.5959]
[1755326643500,0.6885,4425.2,4425.1,2.91774281]
[1755326643705,1.5539,4425.2,4425.1,2.91774281]
[1755326646209,1.71465558,4425.2,4425.1,1.89074281]
[1755326646413,0.26075558,4425.2,4425.1,2.67884281]
[1755326646707,1.5539,4425.2,4425.1,2.91774281]
[1755326647310,1.71469892,4425.2,4425.1,2.91774281]
[1755326647806,0.84829892,4425.2,4425.0,20.998]
[1755326648014,1.61469892,4425.1,4425.0,20.998]
[1755326648506,0.3391,4424.8,4424.7,3.2078]
[1755326648700,0.3391,4424.8,4423.8,0.2389]
[1755326648701,0.5875,4424.6,4424.1,24.2048]
[1755326648900,1.4539,4424.2,4424.1,3.2078]
[1755326649105,1.61478626,4424.2,4424.1,3.2078]
[1755326649306,2.42404639,4424.2,4423.6,24.2038]
[1755326649512,1.4539,4423.7,4423.6,24.6384]
[1755326649716,1.61483242,4423.7,4423.6,25.6654]
[1755326650806,0.74943242,4423.7,4423.6,25.6654]
[1755326651006,0.2578,4424.2,4423.6,24.7997]
[1755326651209,0.2494,4423.9,4423.8,2.91774281]
[1755326651408,0.41028117,4423.9,4423.8,2.91774281]
[1755326651908,0.4102447,4423.9,4423.8,2.91774281]
[1755326652313,0.1608447,4423.9,4423.8,2.91774281]
[1755326652507,1.4539,4424.5,4424.4,0.4346]
[1755326652714,1.4539,4424.5,4423.9,0.2389]
[1755326652715,0.8369,4423.9,4423.8,21.2528]
[1755326653008,1.4539,4423.9,4423.8,21.2528]
[1755326653715,1.4539,4423.9,4423.8,20.995]
[1755326653916,1.4539,4423.9,4423.6,3.2078]
[1755326654216,1.4539,4423.8,4423.7,21.4296]
[1755326654510,1.4539,4423.7,4423.6,3.2078]
[1755326655010,1.4539,4423.7,4423.6,4.4305]
[1755326659707,1.4539,4423.7,4423.6,3.6424]
[1755326660117,1.4539,4423.7,4423.6,24.6334]
[1755326660306,1.4539,4423.7,4423.6,25.2524]
[1755326661011,1.4539,4423.7,4423.6,25.6741]
[1755326661919,0.8661,4424.3,4423.6,25.4265]
[1755326662119,0.76280512,4424.2,4424.1,0.795]
[1755326662320,1.62890512,4424.2,4424.1,0.795]
[1755326662619,1.62890512,4424.2,4424.1,0.4204]
[1755326663021,1.62890512,4424.2,4424.1,0.2523]
[1755326664318,1.62890512,4424.2,4423.6,24.1988]
[1755326664524,1.2091,4423.7,4423.6,25.6599]
[1755326665019,1.4684,4423.7,4423.6,25.6599]
[1755326665222,1.4684,4423.7,4423.6,25.4123]
[1755326665622,1.4684,4423.7,4423.6,25.6599]
[1755326666124,1.4684,4423.7,4423.6,25.4123]
[1755326666321,1.4684,4423.7,4423.6,25.6599]
[1755326666723,0.343,4423.7,4423.6,25.6599]
[1755326666916,0.8661,4424.0,4423.7,0.2444]
[1755326667122,1.4684,4424.0,4423.9,1.2135]
[1755326667324,1.4684,4424.0,4423.9,20.987]
[1755326667325,1.62888283,4424.0,4423.9,20.987]
[1755326669330,0.76278283,4424.0,4423.6,3.2078]
[1755326669625,1.4684,4423.7,4423.6,3.2078]
[1755326669924,1.4684,4423.7,4423.4,20.984]
[1755326669925,1.4684,4423.5,4423.4,21.779]
[1755326670122,0.343,4423.6,4423.5,1.2088]
[1755326670323,1.1097,4423.6,4423.5,1.4611]
[1755326670522,1.4684,4423.6,4423.5,1.2135]
[1755326671923,1.4684,4423.6,4423.5,1.4611]
[1755326672229,1.4684,4423.6,4423.5,1.2135]
[1755326673231,1.62906249,4423.6,4423.5,1.0394]
[1755326675030,1.62906249,4423.6,4423.5,1.4611]
[1755326677936,1.62933975,4423.6,4423.5,1.4611]
[1755326679333,1.62933975,4423.6,4423.5,22.4381]
[1755326680336,1.62933975,4423.6,4423.5,22.1905]
[1755326680838,1.62950212,4423.6,4423.5,22.4381]
[1755326681735,1.84983096,4423.6,4423.5,22.4381]
[1755326683037,1.62950212,4423.6,4423.5,22.4381]
[1755326683640,1.84986644,4423.6,4423.5,22.4381]
[1755326686440,1.84988569,4423.6,4423.5,22.4381]
[1755326686740,1.84990006,4423.6,4423.5,22.4381]
[1755326688443,1.6295292,4423.6,4423.5,22.4381]
[1755326688740,1.84987761,4423.6,4423.5,22.4381]
[1755326688941,1.6295292,4423.6,4423.5,22.4381]
[1755326689441,1.8498912,4423.6,4423.5,22.4381]
[1755326690444,1.84990607,4423.6,4423.5,22.4381]
[1755326690643,1.84990607,4423.6,4423.5,22.1905]
[1755326691338,0.1752,4423.2,4423.1,2.40095556]
[1755326691538,0.1752,4423.2,4423.1,20.965]
[1755326691539,1.6267292,4423.2,4423.1,20.965]
[1755326691738,0.3324292,4423.2,4423.1,22.42]
[1755326691943,0.5803292,4423.2,4423.1,22.42]
[1755326692147,1.0099292,4423.2,4423.1,22.42]
[1755326692442,1.6267292,4423.2,4423.1,22.42]
[1755326693849,1.4656,4423.2,4423.1,22.42]
[1755326695545,1.6266617,4423.2,4423.1,22.42]
[1755326699145,0.1610617,4423.2,4423.1,22.42]
[1755326699348,1.3787617,4423.2,4423.1,22.42]
[1755326699550,1.62666897,4423.2,4423.1,22.42]
[1755326700250,1.62666897,4423.2,4422.9,3.2078]
[1755326700441,1.4656,4422.9,4422.8,2.02445556]
[1755326700643,5.6397913,4422.9,4422.5,2.02445556]
[1755326700854,0.5944,4422.6,4422.4,18.42]
[1755326701147,1.84704849,4422.5,4422.4,18.42]
[1755326701654,1.00125941,4422.5,4422.3,0.2414]
[1755326701950,1.87245941,4422.4,4422.3,1.0414]
[1755326702147,1.87245941,4422.4,4422.3,21.9984]
[1755326702345,1.87245941,4422.4,4422.3,22.2508]
[1755326703646,1.87245941,4422.4,4422.3,22.412]
[1755326704151,1.45325941,4422.4,4422.3,22.412]
[1755326704450,0.40685941,4422.4,4422.3,23.86814281]
[1755326704749,0.2544,4423.3,4422.4,0.8703]
[1755326704949,0.8488,4423.3,4423.2,1.455]
[1755326705154,1.87089685,4423.3,4423.2,21.9964]
[1755326706152,1.87089685,4423.3,4423.2,22.41]
[1755326706853,1.87089685,4423.3,4423.2,1.455]
[1755326707852,1.87089685,4423.3,4423.2,1.2026]
[1755326708250,1.87089685,4423.3,4423.2,1.455]
[1755326708954,1.25409685,4423.3,4423.2,1.455]
[1755326709155,0.99969685,4423.3,4423.2,1.455]
[1755326710757,0.40529685,4423.3,4423.2,2.91114281]
[1755326710946,1.25409685,4423.3,4423.2,1.455]
[1755326711150,1.87089685,4423.3,4423.2,1.455]
[1755326711357,1.62622625,4423.3,4423.2,1.455]
[1755326712556,1.62622625,4423.3,4423.2,1.2026]
[1755326713058,1.62622625,4423.3,4423.2,1.455]
[1755326713559,1.86717317,4423.3,4423.2,1.455]
[1755326714653,1.86717317,4423.3,4423.2,0.8]
[1755326715056,1.86717317,4423.3,4423.2,1.455]
[1755326723668,0.99597317,4423.3,4423.2,1.455]
[1755326724569,1.63717317,4423.3,4423.2,1.455]
[1755326724965,1.89867317,4423.3,4423.2,1.455]
[1755326725165,1.89867317,4423.3,4423.2,0.4235]
[1755326725364,1.89867317,4423.3,4423.0,20.934]
[1755326725662,0.6037,4423.1,4423.0,21.6127]
[1755326725866,1.64712625,4423.1,4423.0,22.0279]
[1755326726264,0.74442625,4423.1,4423.0,22.3951]
[1755326726469,0.16062625,4423.1,4423.0,23.85124281]
[1755326726861,0.5838,4423.2,4423.1,1.4621]
[1755326727068,0.98560161,4423.2,4423.1,1.4621]
[1755326727265,1.49740161,4423.2,4423.1,1.4621]
[1755326727568,1.88830161,4423.2,4423.1,1.4621]
[1755326729969,1.49740161,4423.2,4423.1,1.4621]
[1755326730170,1.49739793,4423.2,4423.1,1.4621]
[1755326730560,0.57849793,4423.2,4423.1,1.4621]
[1755326730763,0.40179793,4423.2,4423.1,1.4621]
[1755326731570,0.40180418,4423.2,4423.1,1.4621]
[1755326732570,0.98560418,4423.2,4423.1,1.4621]
[1755326733373,1.62680418,4423.2,4423.1,1.4621]
[1755326733973,0.40180418,4423.2,4423.1,1.4621]
[1755326734169,0.98560418,4423.2,4423.1,1.4621]
[1755326734370,1.23590418,4423.2,4423.1,1.4621]
[1755326735867,1.23609262,4423.2,4423.1,1.4621]
[1755326736466,1.62699262,4423.2,4423.1,1.4621]
[1755326737570,0.98579262,4423.2,4423.1,1.4621]
[1755326738076,1.23609262,4423.2,4423.1,1.4621]
[1755326738269,1.62699262,4423.2,4423.1,1.4621]
[1755326738773,1.61050316,4423.2,4423.1,1.4621]
[1755326740772,0.96930316,4423.2,4423.1,1.4621]
[1755326740973,0.56220316,4423.2,4423.1,1.4621]
[1755326741574,0.38550316,4423.2,4423.1,1.4621]
[1755326741876,1.61050316,4423.2,4423.1,1.4621]
[1755326742375,1.87200316,4423.2,4423.1,1.4621]
[1755326744480,1.71103364,4423.2,4423.1,1.4621]
[1755326744778,1.8721003,4423.2,4423.1,1.4621]
[1755326744977,1.4812003,4423.2,4423.1,1.4621]
[1755326745278,1.8721003,4423.2,4423.1,1.4621]
[1755326746980,1.4812003,4423.2,4423.1,1.4621]
[1755326747382,0.9694003,4423.2,4423.1,1.4621]
[1755326747880,1.6106003,4423.2,4423.1,1.4621]
[1755326748076,0.5511003,4423.2,4423.1,2.91824281]
[1755326748282,1.20936666,4423.2,4423.1,2.91824281]
[1755326748579,1.61077714,4423.2,4423.1,2.91824281]
[1755326748781,1.87227714,4423.2,4423.1,2.91824281]
[1755326748977,0.38577714,4423.2,4423.1,2.91824281]
[1755326749182,0.16106666,4423.2,4423.1,2.91824281]
[1755326749681,0.42256666,4423.2,4423.1,2.91824281]
[1755326753184,0.16106666,4423.2,4423.1,2.91824281]
[1755326754284,0.16106666,4423.2,4423.1,4.94269837]
[1755326754795,1.12306666,4423.2,4423.1,2.45075556]
[1755326754978,1.63066666,4423.2,4423.1,21.3263]
[1755326755680,1.63188509,4423.2,4423.1,21.3263]
[1755326756079,1.63188509,4423.2,4422.8,2.27425556]
[1755326756080,0.3301,4422.9,4422.8,2.02445556]
[1755326756384,0.5734,4422.8,4422.2,2.02445556]
[1755326756585,0.5734,4422.2,4422.1,21.3207]
[1755326756784,1.63188509,4422.2,4422.1,21.711]
[1755326756984,1.63188509,4422.2,4422.1,21.3207]
[1755326757185,1.63188509,4422.2,4422.1,21.711]
[1755326757387,1.63188509,4422.2,4422.1,21.9533]
[1755326757987,1.63188509,4422.2,4422.1,21.3207]
[1755326758390,1.63165886,4422.2,4422.1,21.711]
[1755326758589,1.63165886,4422.2,4422.1,22.2031]
[1755326759285,1.4696,4422.2,4422.1,22.3648]
[1755326759480,0.8349,4422.2,4422.1,22.3648]
[1755326759681,0.6347,4422.6,4422.2,0.8824]
[1755326759986,0.5734,4422.7,4422.6,2.51244281]
[1755326760187,0.73541928,4422.7,4422.6,23.65624281]
[1755326760386,1.63161928,4422.7,4422.6,23.81794281]
[1755326760587,0.32961928,4422.7,4422.6,23.81794281]
[1755326761189,0.59116563,4422.7,4422.6,23.81794281]
[1755326761387,0.16206563,4422.7,4422.6,23.81794281]
[1755326761589,0.2615,4423.1,4422.6,23.81794281]
[1755326761793,0.2461,4423.3,4423.0,4.6756]
[1755326762096,0.3886,4423.4,4423.1,22.3598]
[1755326762097,0.99975777,4423.2,4423.1,22.3598]
[1755326762316,0.75365777,4423.2,4423.1,22.3598]
[1755326762990,0.75365777,4423.2,4423.1,23.81594281]
[1755326763196,0.32965777,4423.2,4423.1,23.81594281]
[1755326763794,0.16205777,4423.2,4423.1,23.81594281]
[1755326764796,0.42355777,4423.2,4423.1,23.81594281]
[1755326766091,0.2461,4424.4,4423.2,0.8824]
[1755326766292,1.85860985,4424.3,4424.2,2.43184281]
[1755326766591,0.753657,4424.3,4424.2,23.81094281]
[1755326766993,1.631657,4424.3,4424.2,23.81094281]
[1755326767190,0.8962,4424.2,4423.8,3.2078]
[1755326767392,1.4696,4423.9,4423.7,1.45614281]
[1755326767592,0.5734,4423.9,4423.8,21.9423]
[1755326767797,0.73538754,4423.9,4423.8,22.104]
[1755326767994,0.73538754,4423.9,4423.8,22.3538]
[1755326768195,1.63158754,4423.9,4423.8,22.3538]
[1755326768499,1.4696,4423.9,4423.8,25.5616]
[1755326768694,3.7154,4424.6,4423.9,0.8824]
[1755326768899,4.0273,4424.6,4424.5,0.4237]
[1755326769095,4.1892456,4424.6,4424.5,1.0563]
[1755326769296,4.4507456,4424.6,4424.5,1.0563]
[1755326769502,4.8393456,4424.6,4424.5,1.0563]
[1755326770194,4.8393456,4424.6,4424.5,1.4678]
[1755326770395,4.8393456,4424.6,4424.5,1.0563]
[1755326770896,4.8393456,4424.6,4424.4,20.883]
[1755326771102,0.5734,4423.9,4423.8,3.6315]
[1755326771403,1.4696,4423.9,4423.8,25.1451]
[1755326771803,1.4696,4423.9,4423.8,0.4237]
[1755326772003,1.4696,4423.9,4423.8,21.3027]
[1755326772393,1.4696,4423.9,4423.8,21.1404]
[1755326772592,1.0405,4423.9,4423.8,23.55314281]
[1755326772792,0.1676,4424.0,4423.9,0.7943]
[1755326773001,0.3301,4424.0,4423.9,1.4678]
[1755326773204,0.5916,4424.0,4423.9,1.4678]
[1755326774107,1.4696,4424.0,4423.9,1.218]
[1755326774504,1.4696,4424.0,4423.9,1.4678]
[1755326776200,0.2461,4424.2,4424.0,0.6326]
[1755326776401,3.2078,4424.6,4424.5,0.2614]
[1755326776606,0.1617631,4424.6,4424.5,22.3408]
[1755326776996,0.2615,4424.9,4424.6,0.8824]
[1755326777195,0.2615,4424.9,4424.8,6.13174281]
[1755326777401,0.2615,4424.9,4424.8,27.00374281]
[1755326777596,0.1,4425.2,4425.1,0.1623]
[1755326777801,0.1,4425.2,4425.1,22.3398]
[1755326778005,0.6916,4425.2,4425.1,22.3398]
[1755326778197,1.5696,4425.2,4425.1,22.3398]
[1755326778401,0.6916,4425.2,4425.1,22.3398]
[1755326778602,0.1,4425.2,4425.1,22.3398]
[1755326778805,0.1,4425.2,4425.1,23.79594281]
[1755326780506,0.1,4425.2,4425.1,24.24754281]
[1755326780705,0.1,4425.2,4425.1,23.79594281]
[1755326783098,0.1,4425.2,4425.1,26.66715643]
[1755326786907,0.3563,4425.2,4425.1,26.66715643]
[1755326787108,0.5179,4425.2,4425.1,26.66715643]
[1755326787308,0.1,4425.2,4425.1,26.66715643]
[1755326789514,0.437,4425.2,4425.1,26.66715643]
[1755326789714,0.6933,4425.2,4425.1,26.66715643]
[1755326789909,1.3294,4425.2,4425.1,26.66715643]
[1755326791017,1.5702,4425.2,4425.1,0.4237]
[1755326791212,1.5702,4425.2,4425.1,22.73284281]
[1755326791412,1.5702,4425.2,4425.1,23.12414281]
[1755326791618,0.1,4425.2,4425.1,23.79554281]
[1755326792117,0.1,4425.2,4425.1,26.69474424]
[1755326792527,0.8341,4426.2,4426.1,2.27454281]
[1755326792721,0.8341,4426.2,4426.1,23.12554281]
[1755326792916,0.8341,4426.2,4426.1,22.30714281]
[1755326793120,1.4702,4426.2,4426.1,22.30714281]
[1755326793321,1.4702,4426.2,4425.8,1.45614281]
[1755326793521,0.5778,4426.0,4425.9,20.849]
[1755326793721,1.4702,4426.0,4425.9,20.849]
[1755326794726,1.4702,4426.0,4425.8,1.45614281]
[1755326794727,0.5778,4426.0,4425.8,1.45614281]
[1755326794927,1.4702,4425.9,4425.8,20.849]
[1755326797322,1.0856,4425.9,4425.8,22.30514281]
[1755326797525,1.4702,4425.9,4425.8,22.30514281]
[1755326799035,1.4702,4425.9,4425.8,23.12354281]
[1755326799436,1.4702,4425.9,4425.8,23.36444281]
[1755326799637,1.4702,4425.9,4425.8,23.12354281]
[1755326799831,1.4702,4425.9,4425.8,22.73224281]
[1755326800234,1.4702,4425.9,4425.8,23.12354281]
[1755326800742,0.5778,4425.9,4425.7,20.841]
[1755326800933,0.5778,4425.9,4425.2,0.2409]
[1755326800934,0.5778,4425.3,4425.2,1.45614281]
[1755326801135,1.4702,4425.3,4425.2,1.45614281]
[1755326801740,1.4702,4425.3,4425.2,22.29514281]
[1755326804538,1.4702,4425.3,4425.2,23.35444281]
[1755326804930,1.4702,4425.3,4425.2,23.11354281]
[1755326805539,1.63506293,4425.3,4425.2,23.11354281]
[1755326805835,1.63506293,4425.3,4425.2,22.29514281]
[1755326806044,1.4702,4425.0,4424.9,3.2078]
[1755326806238,1.6350517,4425.0,4424.9,20.834]
[1755326807335,0.5778,4424.7,4424.6,0.3913]
[1755326807642,1.4702,4424.7,4424.6,23.10854281]
[1755326807941,1.4702,4424.7,4424.6,23.34944281]
[1755326808142,1.4702,4424.7,4424.6,23.78004281]
[1755326811343,1.4702,4424.7,4424.6,22.88554281]
[1755326811538,1.4702,4424.7,4424.6,23.34934281]
[1755326812140,1.4702,4424.7,4424.6,23.50964281]
[1755326812744,1.4702,4424.7,4424.6,23.75924281]
[1755326813143,0.6061,4425.0,4424.6,23.75924281]
[1755326813348,3.2078,4425.8,4425.0,0.6321]
[1755326813642,0.5959,4425.5,4425.4,1.87894281]
[1755326813843,1.00204451,4425.5,4425.4,23.08514281]
[1755326814034,1.61364451,4425.5,4425.4,23.33904281]
[1755326814846,1.61364451,4425.5,4425.4,21.8829]
[1755326816349,1.61364451,4425.5,4425.4,22.2928]
[1755326817747,0.50534451,4425.5,4425.4,22.2928]
[1755326817950,1.61364451,4425.5,4425.4,22.2928]
[1755326818645,0.16464451,4425.5,4425.4,23.74894281]
[1755326819050,1.61364451,4425.5,4425.4,23.74894281]
[1755326820558,0.5959,4424.9,4424.8,1.87894281]
[1755326820752,1.449,4424.9,4424.8,23.33304281]
[1755326821148,1.449,4424.9,4424.8,23.74294281]